Cogmind - Beta 13 *** ADVENTURER MODE // 2024.07.17 @ 01:30:14 Player: AnotherZach Result: Destroyed by P-70 Sage with Tesla Rifle Performance ------------- Evolutions (5) 2500 Regions Visited (20) 4000 Robots Destroyed (208) 1040 Value Destroyed (8479) 8479 Prototype IDs (43) 860 Alien Tech Used (0) 0 Bonus (4005) 4005 TOTAL SCORE: 20884 Bonus ------- High Alert Combat Kills 1086 Follower Combat Kills 1223 Entered Garrisons 200 Used RIF Installer 1000 Aligned with FarCom 300 Met Data Miner 300 Friendly Fire -104 Cogmind --------- Core Integrity 0/1000 Matter 296/300 Energy 100/100 System Corruption 20% Temperature Cool (1) Movement Flying (35) Location -5/Upper Caves Parts ------- > --- POWER (2) -------- (None) > --- PROPULSION (6) --- VTOL Module > --- UTILITY (6) ------ Advanced Signal Interpreter Hacking Suite Advanced Hacking Suite Advanced System Shield > --- WEAPON (3) ------- Axe > --- INVENTORY (5) ---- Improved Cooling System Energy Well (350) Advanced Weight Redist. System Advanced Field Recycling Unit (0) Peak State ------------ > --- POWER ------------ Improved Deuterium Engine Micro Fission Core > --- PROPULSION ------- Combat Airjet Combat Airjet Combat Airjet Antigrav System Antigrav System Gyrokinetic Inverter > --- UTILITY ---------- Improved Heat Sink Large Storage Unit Visual Processing Unit Energy Filter Makeshift Cloaking Device Hacking Suite > --- WEAPON ----------- High-powered Shock Rifle Tesla Rifle Wave Gun > --- INVENTORY -------- Cooled VTOL Module Cooled VTOL Module Cooled VTOL Module Energy Well Advanced Weight Redist. System Improved Reaction Control System Core Shielding Improved Light Armor Plating Authchip [R/NC] Remote Datajack Tearclaws [Rating: 83] Favorites ----------- Power Cooled Deuterium Engine Engine Cooled Deuterium Engine Power Core Backup Power VII Reactor Cold Fusion Reactor Propulsion Combat Airjet Treads Light Treads Leg Improved Carbon-fiber Leg Wheel Compact Wheel Hover Unit Combat Airjet Flight Unit Cooled VTOL Module Utility High-capacity Storage Unit Device Advanced Cooling System Storage High-capacity Storage Unit Processor Signal Interpreter Hackware Hacking Suite Protection Layered Light Armor Plating Weapon Wave Gun Energy Gun Wave Gun Energy Cannon Cooled Particle Cannon Ballistic Gun Assault Rifle Ballistic Cannon Light Cannon Launcher Missile Launcher Special Weapon Remote Datajack Slashing Weapon Axe Build | -11 -10 -10 -10 -9 -8 -8 -8 -7 -7 -7 -7 -6 -6 -6 -6 -6 -5 -5 -5 -5 ------- Run | Yrd Mat Min Exi Min Mat Gar Mat Fac Low Low Dat Pro Fac Low Low Zio Pro Fac Upp Upp Slots Evolved 10 | . . . . . 4 . . 2 . . . . 2 . . . . 2 . . Power 1 | . . . . . . . . . . . . . . . . . . 1 . . Propulsion 4 | . . . . . 1 . . 1 . . . . 1 . . . . 1 . . Utility 4 | . . . . . 2 . . 1 . . . . 1 . . . . . . . Weapon 1 | . . . . . 1 . . . . . . . . . . . . . . . Parts Attached 219 | 7 5 . 2 . 21 16 25 21 2 . 2 7 49 3 . 4 7 42 5 1 Power 17 | 1 . . . . 1 . 2 . . . . . 9 . . . . 4 . . Engine 15 | 1 . . . . 1 . 2 . . . . . 8 . . . . 3 . . Core 1 | . . . . . . . . . . . . . . . . . . 1 . . Reactor 1 | . . . . . . . . . . . . . 1 . . . . . . . Propulsion 59 | 2 2 . 2 . 7 5 5 1 2 . . 1 16 . . . . 14 1 1 Treads 5 | . 2 . . . 3 . . . . . . . . . . . . . . . Leg 24 | . . . 2 . 4 5 4 1 2 . . 1 5 . . . . . . . Wheel 2 | 2 . . . . . . . . . . . . . . . . . . . . Hover 17 | . . . . . . . 1 . . . . . 5 . . . . 11 . . Flight 11 | . . . . . . . . . . . . . 6 . . . . 3 1 1 Utility 77 | 2 2 . . . 4 4 7 14 . . . 2 17 2 . 2 1 17 3 . Device 32 | 1 1 . . . 1 2 3 3 . . . . 6 . . 1 1 10 3 . Storage 9 | 1 1 . . . . . 1 . . . . . 5 . . . . 1 . . Processor 6 | . . . . . 2 1 . . . . . . . 1 . 1 . 1 . . Hackware 18 | . . . . . . . 1 7 . . . . 5 . . . . 5 . . Protection 12 | . . . . . 1 1 2 4 . . . 2 1 1 . . . . . . Artifact . | . . . . . . . . . . . . . . . . . . . . . Weapon 66 | 2 1 . . . 9 7 11 6 . . 2 4 7 1 . 2 6 7 1 . Energy Gun 29 | 2 . . . . 2 4 9 2 . . . 3 1 . . . 2 4 . . Energy Cannon 8 | . . . . . . . . 3 . . 1 . 3 . . 1 . . . . Ballistic Gun 12 | . . . . . 4 1 1 . . . . . 2 1 . . 2 1 . . Ballistic Cannon 4 | . 1 . . . 3 . . . . . . . . . . . . . . . Launcher 5 | . . . . . . 1 . . . . . . 1 . . 1 2 . . . Special Weapon 4 | . . . . . . . 1 1 . . 1 1 . . . . . . . . Impact Weapon . | . . . . . . . . . . . . . . . . . . . . . Slashing Weapon 4 | . . . . . . 1 . . . . . . . . . . . 2 1 . Piercing Weapon . | . . . . . . . . . . . . . . . . . . . . . Special Melee Weapon . | . . . . . . . . . . . . . . . . . . . . . Unidentified Prototypes 5 | . . . . . 3 . 1 1 . . . . . . . . . . . . Corrupted Parts 2 | . . . . . . . . . . . . . . . . . . 2 . . System Corruption 4 | . . . . . . . . . . . . . . . . . . 4 . . Parts Lost 40 | . 1 . . . . . 3 1 1 . . . . . . 4 3 19 8 . Power 6 | . . . . . . . 1 . . . . . . . . . . 4 1 . Propulsion 14 | . . . . . . . 1 . 1 . . . . . . . . 7 5 . Utility 9 | . . . . . . . . 1 . . . . . . . 2 1 4 1 . Weapon 11 | . 1 . . . . . 1 . . . . . . . . 2 2 4 1 . Highest Loss Streak 16 | . 1 . . . . . 2 1 1 . . . . . . 4 1 16 6 . To Critical Strikes 1 | . . . . . . . . . . . . . . . . . . 1 . . Average Slot Usage (%) 96 | . 99 100 100 100 99 96 99 99 99 100 100 99 98 100 100 92 99 86 53 29 Engine 8 | . 14 14 14 14 9 9 9 7 7 7 7 7 5 6 6 6 6 8 3 . Treads 2 | . 16 28 18 . 4 . . . . . . . . . . . . . . . Leg 18 | . . . 9 28 22 27 27 30 29 30 30 30 21 . . . . . . . Hover 5 | . . . . . . . . . . . . . 3 33 33 33 33 27 10 . Flight 1 | . . . . . . . . . . . . . 7 . . . . 2 1 . Device 9 | . 14 14 14 14 9 7 9 7 7 7 7 7 12 6 . 2 10 9 2 . Storage 7 | . 14 14 14 14 9 9 9 7 7 7 7 7 6 6 6 6 6 3 4 . Processor 5 | . . . . . 8 9 9 7 7 7 7 7 3 . 6 5 6 6 5 5 Hackware 5 | . . . . . . . . 8 7 7 7 7 11 13 13 9 6 11 18 17 Protection 5 | . . . . . 9 9 7 4 7 7 7 6 4 12 13 13 8 . . . Energy Gun 12 | . 19 14 14 14 1 8 25 15 15 15 15 13 10 6 6 3 10 6 . . Energy Cannon 2 | . . . . . . . . 6 7 7 6 7 5 6 6 2 . . . . Ballistic Gun 4 | . . . . . 23 10 . . . . . . 1 6 6 6 2 2 1 . Ballistic Cannon 1 | . 8 14 14 14 2 . . . . . . . . . . . . . . . Naked Turns . | . . . . . . . . . . . . . . . . . . . . . Heaviest Build 80 | 15 51 51 51 51 61 66 68 76 71 71 71 74 80 57 53 54 58 61 22 3 Greatest Support 103 | 32 40 40 60 60 64 66 66 81 81 78 78 83 103 60 60 60 60 72 44 4 Greatest Overweight (x) 3 | . 1 1 1 . 1 1 1 . 1 . . . 3 . . . . 3 3 . Average Overweight (x) . | . . 1 . . . . . . . . . . . . . . . . . . Largest Inventory Capacity 20 | 8 20 20 20 20 20 20 20 20 20 20 20 20 20 15 15 15 15 15 10 5 Average Capacity 17 | 7 16 20 20 20 20 20 20 20 20 20 20 20 17 15 15 15 15 12 9 5 Most Carried 20 | 8 17 18 20 20 20 20 20 20 20 20 20 20 20 15 15 15 15 15 5 5 Average Carried 17 | 4 13 17 17 19 19 19 19 19 19 20 20 19 15 14 15 14 14 11 4 4 Final Capacity 20 | 8 20 20 20 20 20 20 20 20 20 20 20 20 15 15 15 15 15 10 5 5 Final Carried 20 | 8 17 18 20 20 20 19 20 18 20 20 20 20 15 15 15 15 15 5 4 4 Class Distribution -------------------- 23% | Skirmisher 22% | Commander-Tank 15% | Mutant 13% | Hacker-Skirmisher 9% | Hacker-Tank 7% | Hacker-Mutant 4% | Hacker-Sprinter Dominant Class ---------------- Mutant | -10/Materials Mutant | -10/Mines Mutant | -10/Exiles Mutant | -9/Mines Skirmisher | -8/Materials Skirmisher | -8/Garrison Skirmisher | -8/Materials Hacker-Skirmisher | -7/Factory Commander-Tank | -7/Lower Caves Commander-Tank | -7/Lower Caves Commander-Tank | -7/Data Miner Commander-Tank | -6/Proximity Caves Hacker-Skirmisher | -6/Factory Hacker-Tank | -6/Lower Caves Hacker-Tank | -6/Lower Caves Hacker-Tank | -6/Zion Hacker-Tank | -5/Proximity Caves Hacker-Mutant | -5/Factory Hacker-Mutant | -5/Upper Caves Hacker-Mutant | -5/Upper Caves Resources | -11 -10 -10 -10 -9 -8 -8 -8 -7 -7 -7 -7 -6 -6 -6 -6 -6 -5 -5 -5 -5 ----------- Run | Yrd Mat Min Exi Min Mat Gar Mat Fac Low Low Dat Pro Fac Low Low Zio Pro Fac Upp Upp Matter Collected 3826 | 270 86 18 186 56 554 585 384 131 119 . . 110 380 187 21 13 260 138 199 129 Remotely . | . . . . . . . . . . . . . . . . . . . . . Salvage Created 9630 | 150 546 . . 45 570 603 2291 416 292 180 . 426 2552 118 . . 885 176 134 246 Parts 453 | 10 40 . . . 34 46 92 26 9 10 . 22 105 10 . . 31 12 . 6 Haulers Intercepted 10 | . 1 . . . 1 . 5 . . . . . 3 . . . . . . . Recyclers Shooed 3 | . 1 . . . 1 . . . . . . . 1 . . . . . . . Parts Field Recycled . | . . . . . . . . . . . . . . . . . . . . . Retrieved Matter . | . . . . . . . . . . . . . . . . . . . . . Parts Self-Destructed 85 | . . . . . . . . . 21 15 . 30 . 5 . . 14 . . . Prevented 25 | . . . . . . . . . . . . 3 . . . . 22 . . . Kills | -11 -10 -10 -10 -9 -8 -8 -8 -7 -7 -7 -7 -6 -6 -6 -6 -6 -5 -5 -5 -5 ------- Run | Yrd Mat Min Exi Min Mat Gar Mat Fac Low Low Dat Pro Fac Low Low Zio Pro Fac Upp Upp Combat Hostiles Destroyed 159 | . 11 . . 1 8 22 34 5 5 5 . 8 32 5 . . 18 5 . . Melee 2 | . . . . . . 1 . . . . . . . . . . . 1 . . Guns 78 | . 5 . . 1 6 7 33 1 3 2 . 3 10 2 . . 5 . . . Cannons 41 | . 3 . . . 1 . . 3 2 2 . 5 22 3 . . . . . . AOE 30 | . 3 . . . 1 14 . . . . . . . . . . 8 4 . . Classes Destroyed 22 | 2 4 . . . 1 2 5 2 . . . 2 2 1 . . . . . 1 Worker 6 | . . . . . . . 2 . . . . . 4 . . . . . . . Builder 4 | . . . . . . . . 1 . . . . 3 . . . . . . . Tunneler 3 | 3 . . . . . . . . . . . . . . . . . . . . Hauler 10 | . 1 . . . 1 . 5 . . . . . 3 . . . . . . . Recycler 8 | 1 2 . . . 1 . 2 . . . . . 2 . . . . . . . Minesweeper 3 | . . . . . . . . . . . . 1 . . . . 2 . . . Mechanic 3 | . . . . . . . 3 . . . . . . . . . . . . . Operator 3 | . . . . . . . 2 . . . . . 1 . . . . . . . Drone 2 | . . . . . . . . . . . . . 1 . . . . 1 . . Watcher 11 | . 3 . . . 1 . 1 4 . . . . 2 . . . . . . . Swarmer 37 | . 6 . . . . 7 3 . 1 3 . 2 3 4 . . 8 . . . Grunt 65 | . 5 . . 1 5 7 18 . 2 1 . 2 19 . . . 5 . . . Brawler 3 | . . . . . . . 1 . . . . . 1 . . . 1 . . . Duelist 4 | . . . . . . 1 . . 2 1 . . . . . . . . . . Sentry 23 | . . . . . 3 5 10 2 . . . 1 1 . . . 1 . . . Specialist 2 | . . . . . . 2 . . . . . . . . . . . . . . Hunter 5 | . . . . . . . 2 . . . . . 2 . . . . 1 . . Programmer 15 | . . . . . . . . 3 . . . 2 4 . . . 3 3 . . Heavy 1 | . . . . . . . . . . . . . 1 . . . . . . . Behemoth 1 | . . . . . . . . . . . . 1 . . . . . . . . Packrat 2 | . . . . . . . . . . . . . . . . . . . 2 . Samaritan 3 | . . . . . . . . . . . . . . . . . . . . 3 Thief 1 | . . . . . . . . . . . . . . 1 . . . . . . Best Kill Streak 7 | 4 5 . . 1 3 4 7 4 3 3 . 3 6 4 . . 4 2 . . Combat Bots Only 6 | . 3 . . 1 3 4 6 2 3 3 . 3 5 4 . . 4 2 . . Max Kills in Single Turn 4 | 1 2 . . 1 1 4 2 2 1 1 . 1 2 2 . . 2 2 1 1 Gunslinging 1 | . . . . . . . 1 . . . . . . . . . . . . . Exploded 4 | . 1 . . . 1 4 . . . . . . . . . . 2 2 . . Melee 1 | . . . . . . 1 . . . . . . . . . . . 1 . . Uniques/NPCs Destroyed . | . . . . . . . . . . . . . . . . . . . . . Combat | -11 -10 -10 -10 -9 -8 -8 -8 -7 -7 -7 -7 -6 -6 -6 -6 -6 -5 -5 -5 -5 -------- Run | Yrd Mat Min Exi Min Mat Gar Mat Fac Low Low Dat Pro Fac Low Low Zio Pro Fac Upp Upp Hostile Shots Fired 1079 | . 26 . . 7 22 76 140 42 34 21 . 47 217 7 . 24 85 246 61 24 Missed 416 | . 6 . . 2 7 30 42 14 9 3 . 25 88 2 . 17 33 104 21 13 Damage Taken 9243 | . 163 . . 54 271 659 1198 189 375 233 . 364 1440 53 . 351 906 2205 603 179 Core 1777 | . 12 . . 8 12 103 127 39 77 20 . 61 182 10 . 40 76 621 227 162 Absorbed by Shields 137 | . . . . . . . . . . . . . 137 . . . . . . . Redirected to Shielding 56 | . . . . . . . . . . . . . . 2 . 9 45 . . . Ignored by Resistances 2531 | . 53 . . 15 75 187 342 59 104 67 . 104 446 17 . 17 252 598 144 51 Regen/Repaired (Parts) 1293 | . 21 . . . . . . 79 143 168 . 273 609 . . . . . . . Core Remaining (%) 76 | 100 . . . 92 . . 56 . . . . 71 . . . . 63 . . . Volleys Fired 441 | 7 28 . . 5 28 39 95 21 11 8 3 24 107 4 . 18 36 7 . . Largest 3 | 2 2 . . 2 3 3 3 3 3 3 1 3 3 3 . 1 3 3 . . Hottest 232 | 80 80 . . 75 139 183 203 232 232 232 5 232 232 204 . 90 203 206 . . Shots Fired 1053 | 14 50 . . 10 84 82 256 51 33 22 3 54 285 12 . 18 65 14 . . Gun 786 | 14 45 . . 5 61 60 256 29 22 14 . 37 181 8 . . 40 14 . . Cannon 211 | . 5 . . 5 23 . . 18 11 8 . 16 104 4 . 17 . . . . Launcher 48 | . . . . . . 22 . . . . . . . . . 1 25 . . . Special 8 | . . . . . . . . 4 . . 3 1 . . . . . . . . Kinetic 179 | . 5 . . 5 73 47 11 . . . . . 24 4 . . 8 2 . . Thermal 721 | . . . . . 6 13 232 47 33 22 . 46 261 8 . 17 32 4 . . Explosive 22 | . . . . . . 22 . . . . . . . . . . . . . . Electromagnetic 123 | 14 45 . . 5 5 . 13 . . . . 7 . . . 1 25 8 . . Robot Hit Streak 38 | 10 21 . . 6 22 37 38 8 19 22 4 13 29 4 . . 17 3 . . Robot Miss Streak 6 | 1 2 . . 1 2 2 2 1 1 2 . 2 6 1 . . 2 4 . . Penetration Max 1 | . . . . . . . . . . . . . . 1 . . . . . . Secondary Targets 13 | . 3 . . . . . 10 . . . . . . . . . . . . . Max Gunslinging Chain 1 | . 1 . . . . . 1 . . . . . . . . . . . . . Shots Hit Robots 729 | 11 41 . . 7 66 48 192 32 27 16 3 40 172 6 . . 44 16 2 6 Core Hits 331 | 5 23 . . 2 25 36 77 13 11 5 . 13 71 5 . . 33 7 1 4 Critical Kills 1 | . . . . . 1 . . . . . . . . . . . . . . . Critical Parts Destroyed . | . . . . . . . . . . . . . . . . . . . . . Critical Strikes 34 | . . . . . 1 1 14 2 . 2 . 1 11 . . . 2 . . . Burn 33 | . . . . . . 1 14 2 . 2 . 1 11 . . . 2 . . . Destroy 1 | . . . . . 1 . . . . . . . . . . . . . . . Melee Attacks 36 | . . . . . . 5 . . . . . . . . . . . 23 2 6 Impact . | . . . . . . . . . . . . . . . . . . . . . Slashing 36 | . . . . . . 5 . . . . . . . . . . . 23 2 6 Piercing . | . . . . . . . . . . . . . . . . . . . . . Sneak Attacks 6 | . . . . . . . . . . . . . . . . . . . 2 4 Combat Hostiles . | . . . . . . . . . . . . . . . . . . . . . Follow-up Attacks . | . . . . . . . . . . . . . . . . . . . . . Damage Inflicted 20983 | 168 822 . . 168 1044 2126 3958 984 793 491 . 1180 5721 198 . . 1733 1049 132 416 Guns 11045 | 144 505 . . 56 657 507 3891 552 457 240 . 548 2675 67 . . 595 151 . . Cannons 5037 | . 72 . . 71 314 . . 400 336 251 . 603 2859 131 . . . . . . Explosions 4063 | 24 245 . . 41 73 1494 67 32 . . . 29 187 . . . 1138 733 . . Melee 790 | . . . . . . 125 . . . . . . . . . . . 117 132 416 Ramming 48 | . . . . . . . . . . . . . . . . . . 48 . . Kinetic 1850 | . 72 . . 71 811 462 161 . . . . . 123 43 . . 62 45 . . Thermal 14529 | 24 245 . . 41 173 45 3643 984 793 491 . 1123 5598 155 . . 533 681 . . Explosive 1494 | . . . . . . 1494 . . . . . . . . . . . . . . Electromagnetic 2272 | 144 505 . . 56 60 . 154 . . . . 57 . . . . 1138 158 . . Impact . | . . . . . . . . . . . . . . . . . . . . . Slashing 790 | . . . . . . 125 . . . . . . . . . . . 117 132 416 Piercing . | . . . . . . . . . . . . . . . . . . . . . Highest Corruption 20 | . . . . . 5 5 5 . . . . . 1 1 1 9 1 20 20 20 Average Corruption 5 | . . . . . 4 5 5 . . . . . 1 1 1 2 1 12 20 20 Corruption Purged . | . . . . . . . . . . . . . . . . . . . . . Corruption Blocked . | . . . . . . . . . . . . . . . . . . . . . Effects 182 | . . . . . 34 33 47 . . . . . 12 4 1 2 2 24 11 12 Message Errors 45 | . . . . . 9 7 10 . . . . . 3 . . . 1 8 3 4 Matter Fused 37 | . . . . . 13 7 6 . . . . . 1 2 . 1 . 3 3 1 Heat Flow Errors 18 | . . . . . 2 3 5 . . . . . 3 2 . . . 2 1 . Energy Discharges 22 | . . . . . 3 8 6 . . . . . 2 . . 1 . 1 1 . Parts Rejected 4 | . . . . . . . 2 . . . . . . . . . . 1 1 . Parts Fused 6 | . . . . . 2 2 2 . . . . . . . . . . . . . Data Loss (minor) 21 | . . . . . 2 4 8 . . . . . 2 . 1 . . 2 . 2 Data Loss (major) 7 | . . . . . 2 1 2 . . . . . . . . . 1 1 . . Misfires 5 | . . . . . . 1 4 . . . . . . . . . . . . . Alerts 5 | . . . . . 1 . 1 . . . . . . . . . . . 1 2 Misdirections 9 | . . . . . . . . . . . . . . . . . . 5 1 3 Weapon Failures 3 | . . . . . . . 1 . . . . . 1 . . . . 1 . . Overload Shots 104 | . . . . . . . . 12 6 4 . 11 68 1 . 2 . . . . Effects 6 | . . . . . . . . 1 . 1 . . 4 . . . . . . . Energy Bleed 3 | . . . . . . . . 1 . . . . 2 . . . . . . . Heat Surge 1 | . . . . . . . . . . 1 . . . . . . . . . . Short Circuit 2 | . . . . . . . . . . . . . 2 . . . . . . . Overflow Damage 583 | . 5 . . . . 92 . 60 4 . . 69 215 1 . . 19 . 52 66 Projectiles 343 | . . . . . . . . 58 4 . . 69 211 1 . . . . . . Explosions 122 | . 5 . . . . 92 . 2 . . . . 4 . . . 19 . . . Melee 118 | . . . . . . . . . . . . . . . . . . . 52 66 Knockbacks 2 | . . . . 2 . . . . . . . . . . . . . . . . Impact . | . . . . . . . . . . . . . . . . . . . . . Kinetic 2 | . . . . 2 . . . . . . . . . . . . . . . . Secondary . | . . . . . . . . . . . . . . . . . . . . . Self-Inflicted Damage 299 | . 23 . . . 37 143 . . . . . . . . . . 48 48 . . Shots 11 | . 1 . . . 1 4 . . . . . . . . . . 5 . . . Rammed . | . . . . . . . . . . . . . . . . . . . . . Targets Rammed . | . . . . . . . . . . . . . . . . . . . . . Kicked . | . . . . . . . . . . . . . . . . . . . . . Crushed . | . . . . . . . . . . . . . . . . . . . . . Highest Temperature 415 | 56 90 . . 108 264 259 345 216 234 402 . 261 195 188 . 48 123 415 268 . Average Temperature 78 | 25 28 . . 55 87 62 75 74 96 180 . 119 62 78 . 26 50 101 106 . Received Heat Transfer 3070 | . 54 . . 39 126 201 801 60 135 63 . 117 489 . . . 138 375 454 18 Effects 10 | . . . . . . . 3 . . . . . . . . . . 7 . . Shutdowns 2 | . . . . . . . . . . . . . . . . . . 2 . . Energy Bleed 2 | . . . . . . . . . . . . . . . . . . 2 . . Interference 6 | . . . . . . . 3 . . . . . . . . . . 3 . . Siege Activations . | . . . . . . . . . . . . . . . . . . . . . Robots Corrupted 5 | . . . . . . . . . . . . . . . . . 5 . . . Combat Hostiles 5 | . . . . . . . . . . . . . . . . . 5 . . . Parts Fried 9 | . 1 . . . 1 . 3 . . . . 1 . . . . 3 . . . Impact Corruptions . | . . . . . . . . . . . . . . . . . . . . . Robots Melted 5 | . . . . . . . 2 1 . 1 . . 1 . . . . . . . Combat Hostiles 3 | . . . . . . . 1 1 . 1 . . . . . . . . . . Parts Melted 49 | . . . . . . . 15 7 . 1 . 2 18 2 . . 3 1 . . Heat Transferred 23040 | 50 400 . . 50 285 148 7426 1373 1064 792 . 1523 7994 198 . . 1400 337 . . Parts Sabotaged . | . . . . . . . . . . . . . . . . . . . . . Parts Stolen . | . . . . . . . . . . . . . . . . . . . . . Parts Stripped . | . . . . . . . . . . . . . . . . . . . . . Power Chain Reactions 12 | 1 5 . . 1 1 . 1 . . . . 1 . . . . 2 . . . Alert | -11 -10 -10 -10 -9 -8 -8 -8 -7 -7 -7 -7 -6 -6 -6 -6 -6 -5 -5 -5 -5 ------- Run | Yrd Mat Min Exi Min Mat Gar Mat Fac Low Low Dat Pro Fac Low Low Zio Pro Fac Upp Upp Peak Influence 1321 | 20 201 1 . 85 141 1321 1001 477 . . . . 1010 . . . . 560 . . Initial 546 | . 11 1 . . 27 79 546 390 . . . . 42 . . . . 113 . . Average 370 | 8 37 1 . 21 45 697 820 387 . . . . 417 . . . . 214 . . Maximum Alert Level 4 | . 1 . . . . 4 3 2 . . . . 3 . . . . 2 . . Low Security (%) 46 | 100 98 100 . 100 100 17 . . . . . . 33 . . . . 65 . . Level 1 11 | . 1 . . . . 9 . 41 . . . . 18 . . . . 20 . . Level 2 19 | . . . . . . 27 17 58 . . . . 28 . . . . 13 . . Level 3 18 | . . . . . . 20 82 . . . . . 19 . . . . . . . Level 4 3 | . . . . . . 24 . . . . . . . . . . . . . . Level 5 . | . . . . . . . . . . . . . . . . . . . . . High Security . | . . . . . . . . . . . . . . . . . . . . . Max Security . | . . . . . . . . . . . . . . . . . . . . . Squads Dispatched 52 | . 1 . . . 2 . 7 6 . . . . 21 . . . 1 14 . . Investigation 25 | . 1 . . . . . 4 1 . . . . 9 . . . . 10 . . Extermination 9 | . . . . . . . . 3 . . . . 3 . . . . 3 . . Reinforcement 13 | . . . . . 2 . 2 2 . . . . 6 . . . . 1 . . Assault 2 | . . . . . . . 1 . . . . . . . . . 1 . . . Garrison 3 | . . . . . . . . . . . . . 3 . . . . . . . Intercept . | . . . . . . . . . . . . . . . . . . . . . Searches Triggered . | . . . . . . . . . . . . . . . . . . . . . Data Miner Redirects 1 | . . . . . . . . . . . . . . . . . . 1 . . Construction Impeded 1 | . . . . . . . . 1 . . . . . . . . . . . . Haulers Reinforced 3 | . . . . . . . . . . . . . 3 . . . . . . . Active Scanning Responses . | . . . . . . . . . . . . . . . . . . . . . Cargo Convoy Interrupts 1 | . . . . . . . . . . . . . 1 . . . . . . . Stealth | -11 -10 -10 -10 -9 -8 -8 -8 -7 -7 -7 -7 -6 -6 -6 -6 -6 -5 -5 -5 -5 --------- Run | Yrd Mat Min Exi Min Mat Gar Mat Fac Low Low Dat Pro Fac Low Low Zio Pro Fac Upp Upp Distress Signals 9 | . 1 . . . 1 . 1 . . . . . 6 . . . . . . . Communications Jammed . | . . . . . . . . . . . . . . . . . . . . . Distress Signals . | . . . . . . . . . . . . . . . . . . . . . Times Spotted 303 | . 15 . . 3 11 29 50 11 13 7 . 16 63 5 . 2 27 38 8 5 Peak Tracking Total 11 | . 4 . . 3 3 4 7 3 5 4 . 4 9 4 . 2 5 11 6 5 Tactical Retreats 28 | . . . . . . . . . . . . . 10 . . . 2 10 4 2 Traps | -11 -10 -10 -10 -9 -8 -8 -8 -7 -7 -7 -7 -6 -6 -6 -6 -6 -5 -5 -5 -5 ------- Run | Yrd Mat Min Exi Min Mat Gar Mat Fac Low Low Dat Pro Fac Low Low Zio Pro Fac Upp Upp Traps Triggered 15 | . 2 . . . 2 6 2 . . . . . . . . . 1 1 1 . Indirectly . | . . . . . . . . . . . . . . . . . . . . . Trap Hack Attempts . | . . . . . . . . . . . . . . . . . . . . . Triggered . | . . . . . . . . . . . . . . . . . . . . . Disarmed 4 | . . . . . . . . . . . . . 4 . . . . . . . Reprogrammed . | . . . . . . . . . . . . . . . . . . . . . Reused 3 | . . . . . . . . . . . . . . . . . 3 . . . Traps Extracted . | . . . . . . . . . . . . . . . . . . . . . Installed 13 | . . . . . . . . . . . . . . . . . 13 . . . Triggered 7 | . . . . . . . . . . . . 1 . . . . 6 . . . Objects Rigged 24 | . . . . . . . . . . . . . 3 . . . . 21 . . Exploded 5 | . . . . . . . . . . . . . 1 . . . . 4 . . Machines | -11 -10 -10 -10 -9 -8 -8 -8 -7 -7 -7 -7 -6 -6 -6 -6 -6 -5 -5 -5 -5 ---------- Run | Yrd Mat Min Exi Min Mat Gar Mat Fac Low Low Dat Pro Fac Low Low Zio Pro Fac Upp Upp Machines Disabled 39 | . 1 . . 1 1 7 . 2 1 . . . 8 . . . 1 17 . . Max in Single Turn 6 | . 1 . . 1 1 1 . 2 . . . . 4 . . . 1 6 . . Garrison Access 1 | . . . . . . . . . . . . . 1 . . . . . . . Garrison Relay 3 | . . . . . . 3 . . . . . . . . . . . . . . Phase Generator 1 | . . . . . . 1 . . . . . . . . . . . . . . Machines Repaired . | . . . . . . . . . . . . . . . . . . . . . Machines Dismantled . | . . . . . . . . . . . . . . . . . . . . . Machines Sabotaged . | . . . . . . . . . . . . . . . . . . . . . Overloaded Fab Kills . | . . . . . . . . . . . . . . . . . . . . . Hacking | -11 -10 -10 -10 -9 -8 -8 -8 -7 -7 -7 -7 -6 -6 -6 -6 -6 -5 -5 -5 -5 --------- Run | Yrd Mat Min Exi Min Mat Gar Mat Fac Low Low Dat Pro Fac Low Low Zio Pro Fac Upp Upp Machines Accessed 73 | . 7 . 2 . 9 3 11 4 . . 4 . 17 . 1 . . 14 . 1 Terminals 46 | . 4 . . . 5 3 9 3 . . . . 10 . 1 . . 10 . 1 Fabricators 6 | . . . . . . . . 1 . . . . 4 . . . . 1 . . Repair Stations 6 | . 1 . . . . . 1 . . . . . 2 . . . . 2 . . Recycling Units 3 | . 2 . . . 1 . . . . . . . . . . . . . . . Scanalyzers 4 | . . . . . 2 . 1 . . . . . . . . . . 1 . . Garrison Access 2 | . . . . . 1 . . . . . . . 1 . . . . . . . Total Hacks 265 | . 22 . 3 . 24 6 31 16 . . 30 . 87 . 1 . . 43 . 2 Successful 189 | . 17 . 3 . 17 3 23 13 . . 30 . 52 . 1 . . 28 . 2 Failed 75 | . 5 . . . 6 3 8 3 . . . . 35 . . . . 15 . . Catastrophic 11 | . . . . . . 1 . 1 . . . . 5 . . . . 4 . . Database Lockouts 1 | . . . . . 1 . . . . . . . . . . . . . . . Manual 137 | . 14 . 1 . 17 3 24 6 . . . . 46 . . . . 26 . . Terminals 155 | . 12 . . . 17 6 25 6 . . . . 54 . 1 . . 32 . 2 Fabricators 38 | . . . . . . . . 10 . . . . 25 . . . . 3 . . Repair Stations 15 | . 2 . . . . . 2 . . . . . 4 . . . . 7 . . Recycling Units 9 | . 8 . . . 1 . . . . . . . . . . . . . . . Scanalyzers 10 | . . . . . 5 . 4 . . . . . . . . . . 1 . . Garrison Access 5 | . . . . . 1 . . . . . . . 4 . . . . . . . Terminal Hacks 81 | . 4 . 3 . 3 3 6 2 . . 30 . 16 . 1 . . 11 . 2 Record 16 | . . . 2 . . . . . . . 11 . . . 1 . . . . 2 Part Schematic 15 | . . . . . . . 1 . . . 11 . 1 . . . . 2 . . Robot Schematic 10 | . . . . . 1 . 1 1 . . 5 . 2 . . . . . . . Robot Analysis 6 | . 2 . . . 1 . 2 . . . . . . . . . . 1 . . Prototype ID Bank 3 | . . . . . . . . . . . 3 . . . . . . . . . Open DSF 1 | . . . . . . . . . . . . . . . . . . 1 . . Branch Access Points 2 | . . . . . . . . . . . . . 1 . . . . 1 . . Emergency Access Points 2 | . . . . . . 1 . . . . . . 1 . . . . . . . Terminal Index 3 | . . . . . . . 1 . . . . . 1 . . . . 1 . . Fabricator Index 1 | . . . . . . . . 1 . . . . . . . . . . . . Repair Station Index 1 | . . . . . . . . . . . . . . . . . . 1 . . Scanalyzer Index 1 | . . . . . . . . . . . . . . . . . . 1 . . Unreport Threat 4 | . 1 . . . . . 1 . . . . . 1 . . . . 1 . . Disarm Traps 1 | . . . . . . . . . . . . . 1 . . . . . . . Dispatch Records 2 | . . . . . . . . . . . . . 2 . . . . . . . Recall Investigation 1 | . . . . . . . . . . . . . 1 . . . . . . . Recall Reinforcements 2 | . . . . . . . . . . . . . 2 . . . . . . . Hauler Manifests 2 | . 1 . . . 1 . . . . . . . . . . . . . . . Zone Layout 5 | . . . . . . . . . . . . . 3 . . . . 2 . . Garrison Registry 1 | . . . . . . 1 . . . . . . . . . . . . . . Patrol Navigation 1 | . . . . . . 1 . . . . . . . . . . . . . . Derelict Proto ID Bank 1 | . . . 1 . . . . . . . . . . . . . . . . . Fabricator Hacks 21 | . . . . . . . . 9 . . . . 11 . . . . 1 . . Network Status 2 | . . . . . . . . 1 . . . . 1 . . . . . . . Load Schematic 10 | . . . . . . . . 4 . . . . 5 . . . . 1 . . Build 9 | . . . . . . . . 4 . . . . 5 . . . . . . . Repair Station Hacks 12 | . 2 . . . . . 2 . . . . . 3 . . . . 5 . . Scan Component 2 | . 1 . . . . . 1 . . . . . . . . . . . . . Repair 2 | . 1 . . . . . 1 . . . . . . . . . . . . . Refit 8 | . . . . . . . . . . . . . 3 . . . . 5 . . Recycling Unit Hacks 2 | . 2 . . . . . . . . . . . . . . . . . . . Retrieve Matter 1 | . 1 . . . . . . . . . . . . . . . . . . . Retrieve Components 1 | . 1 . . . . . . . . . . . . . . . . . . . Scanalyzer 8 | . . . . . 5 . 3 . . . . . . . . . . . . . Insert Component 3 | . . . . . 2 . 1 . . . . . . . . . . . . . Analyze 5 | . . . . . 3 . 2 . . . . . . . . . . . . . Garrison Access Hacks 3 | . . . . . 1 . . . . . . . 2 . . . . . . . Unlock Access 1 | . . . . . 1 . . . . . . . . . . . . . . . Seal Access 1 | . . . . . . . . . . . . . 1 . . . . . . . Coupler Status 1 | . . . . . . . . . . . . . 1 . . . . . . . Unauthorized Hacks 62 | . 9 . . . 8 . 12 2 . . . . 20 . . . . 11 . . Terminals 46 | . 6 . . . 7 . 11 1 . . . . 13 . . . . 8 . . Track 10 | . 2 . . . 2 . 3 . . . . . 2 . . . . 1 . . Assimilate 3 | . . . . . . . . . . . . . 3 . . . . . . . Botnet 21 | . 4 . . . 3 . 5 1 . . . . 5 . . . . 3 . . Detonate 5 | . . . . . . . 1 . . . . . 1 . . . . 3 . . Disrupt 2 | . . . . . 1 . . . . . . . 1 . . . . . . . Operators 4 | . . . . . 1 . 1 . . . . . 1 . . . . 1 . . Sabotage 1 | . . . . . . . 1 . . . . . . . . . . . . . Fabricators 9 | . . . . . . . . 1 . . . . 6 . . . . 2 . . Report 1 | . . . . . . . . . . . . . 1 . . . . . . . Prioritize 2 | . . . . . . . . 1 . . . . 1 . . . . . . . Liberate 4 | . . . . . . . . . . . . . 3 . . . . 1 . . Haulers 1 | . . . . . . . . . . . . . 1 . . . . . . . Recompile 1 | . . . . . . . . . . . . . . . . . . 1 . . Repair Stations 1 | . . . . . . . . . . . . . 1 . . . . . . . Mechanics 1 | . . . . . . . . . . . . . 1 . . . . . . . Recycling Units 4 | . 3 . . . 1 . . . . . . . . . . . . . . . Reject 3 | . 2 . . . 1 . . . . . . . . . . . . . . . Recyclers 1 | . 1 . . . . . . . . . . . . . . . . . . . Scanalyzers 2 | . . . . . . . 1 . . . . . . . . . . 1 . . Extract 2 | . . . . . . . 1 . . . . . . . . . . 1 . . Garrison Access . | . . . . . . . . . . . . . . . . . . . . . Data Cores Recovered . | . . . . . . . . . . . . . . . . . . . . . Used . | . . . . . . . . . . . . . . . . . . . . . Hacking Detections 53 | . 6 . . . 7 2 10 4 . . . . 15 . . . . 9 . . Full Trace Events 21 | . . . . . 1 1 1 1 . . . . 9 . . . . 8 . . Feedback Events 1 | . . . . . . . . 1 . . . . . . . . . . . . Hackware Fried 1 | . . . . . . . . 1 . . . . . . . . . . . . Feedback Blocked 1 | . . . . . . . . . . . . . 1 . . . . . . . Robot Schematics Acquired 10 | . . . . . 1 . 1 1 . . 5 . 2 . . . . . . . Robots Built 16 | . . . . . . . . 7 . . . . 9 . . . . . . . Authchips 7 | . . . . . . . . 4 . . . . 3 . . . . . . . Time 486 | . . . . . . . . 120 . . . . 366 . . . . . . . Total Robot Build Rating 66 | . . . . . . . . 23 . . . . 43 . . . . . . . Part Schematics Acquired 23 | . . . . . 2 . 4 . . . 11 . 1 . . . . 5 . . Parts Built . | . . . . . . . . . . . . . . . . . . . . . Authchips . | . . . . . . . . . . . . . . . . . . . . . Time . | . . . . . . . . . . . . . . . . . . . . . Total Part Build Rating . | . . . . . . . . . . . . . . . . . . . . . Parts Repaired 2 | . 1 . . . . . 1 . . . . . . . . . . . . . Time 124 | . 36 . . . . . 88 . . . . . . . . . . . . . Parts Recycled . | . . . . . . . . . . . . . . . . . . . . . Recycled Matter . | . . . . . . . . . . . . . . . . . . . . . Retrieved Matter 22 | . 22 . . . . . . . . . . . . . . . . . . . Retrieved Components 9 | . 9 . . . . . . . . . . . . . . . . . . . Parts Scanalyzed 3 | . . . . . 2 . 1 . . . . . . . . . . . . . Part Schematics Acquired 3 | . . . . . 2 . 1 . . . . . . . . . . . . . Parts Damaged . | . . . . . . . . . . . . . . . . . . . . . Bothacking | -11 -10 -10 -10 -9 -8 -8 -8 -7 -7 -7 -7 -6 -6 -6 -6 -6 -5 -5 -5 -5 ------------ Run | Yrd Mat Min Exi Min Mat Gar Mat Fac Low Low Dat Pro Fac Low Low Zio Pro Fac Upp Upp Used RIF Installer 2 | . . . . . . 2 . . . . . . . . . . . . . . Structural Interface 1 | . . . . . . 1 . . . . . . . . . . . . . . Robots Hacked 5 | . . . . . . . . 3 . . 1 1 . . . . . . . . Non-combat 3 | . . . . . . . . 2 . . . 1 . . . . . . . . Combat 2 | . . . . . . . . 1 . . 1 . . . . . . . . . Robot Hacks Applied 8 | . . . . . . . . 4 . . 3 1 . . . . . . . . parse_system 5 | . . . . . . . . 1 . . 3 1 . . . . . . . . map_earth 1 | . . . . . . . . 1 . . . . . . . . . . . . formatsys_low 1 | . . . . . . . . 1 . . . . . . . . . . . . formatsys_high 1 | . . . . . . . . 1 . . . . . . . . . . . . Relay Couplers Released 12 | . . . . . . 11 . . . . . . 1 . . . . . . . Machine Destruction 12 | . . . . . . 11 . . . . . . 1 . . . . . . . Attached 1 | . . . . . . . . 1 . . . . . . . . . . . . Fabnet Peak Effective % . | . . . . . . . . . . . . . . . . . . . . . Robots Rewired 6 | . . . . . . 4 . . 1 . . . . . . . 1 . . . Allies Hacked 1 | . . . . . . . . . . . . . 1 . . . . . . . Hacks Repelled . | . . . . . . . . . . . . . . . . . . . . . Allies | -11 -10 -10 -10 -9 -8 -8 -8 -7 -7 -7 -7 -6 -6 -6 -6 -6 -5 -5 -5 -5 -------- Run | Yrd Mat Min Exi Min Mat Gar Mat Fac Low Low Dat Pro Fac Low Low Zio Pro Fac Upp Upp Total Allies 29 | . . 1 . 3 . 4 . 9 1 . . . 10 . . . 1 . . . Largest Group 9 | . . 1 1 3 2 4 . 9 8 7 7 7 7 . . . 1 . . . Highest-Rated Group 229 | . . 31 31 40 24 160 . 200 181 166 166 166 229 . . . 29 . . . Highest-Rated Ally 41 | . . 31 31 16 16 40 . 32 32 32 32 32 41 . . . 29 . . . Total Orders 14 | . . . . . . . . 1 5 1 . 2 5 . . . . . . . STAY 1 | . . . . . . . . . . . . . 1 . . . . . . . FOLLOW 1 | . . . . . . . . . 1 . . . . . . . . . . . GUARD 2 | . . . . . . . . . . . . 1 1 . . . . . . . AID 7 | . . . . . . . . 1 1 1 . 1 3 . . . . . . . TUNNEL 3 | . . . . . . . . . 3 . . . . . . . . . . . Ally Attacks 225 | . . . . 15 10 37 . . 29 13 . 36 84 . . . 1 . . . Total Damage 5937 | . . . . 178 91 1039 . . 628 339 . 787 2856 . . . 19 . . . Kills 53 | . . . . 2 1 9 . . 9 2 . 9 21 . . . . . . . Allies Corrupted . | . . . . . . . . . . . . . . . . . . . . . Allies Melted . | . . . . . . . . . . . . . . . . . . . . . Intel | -11 -10 -10 -10 -9 -8 -8 -8 -7 -7 -7 -7 -6 -6 -6 -6 -6 -5 -5 -5 -5 ------- Run | Yrd Mat Min Exi Min Mat Gar Mat Fac Low Low Dat Pro Fac Low Low Zio Pro Fac Upp Upp Robot Analysis Total 6 | . 2 . . . 1 . 2 . . . . . . . . . . 1 . . Derelict Logs Recovered 10 | . . . . . . . . . . 2 . 2 . 2 2 . . . . 2 Drone Launches . | . . . . . . . . . . . . . . . . . . . . . Drone Recoveries . | . . . . . . . . . . . . . . . . . . . . . Exploration | -11 -10 -10 -10 -9 -8 -8 -8 -7 -7 -7 -7 -6 -6 -6 -6 -6 -5 -5 -5 -5 ------------- Run | Yrd Mat Min Exi Min Mat Gar Mat Fac Low Low Dat Pro Fac Low Low Zio Pro Fac Upp Upp Turns Passed 15393 | 130 1242 184 436 97 1528 1302 1539 1060 548 541 180 1591 2074 358 209 210 606 1150 203 205 Spaces Moved 11271 | 91 676 77 278 45 426 846 829 640 385 390 142 1035 1842 488 308 177 697 1230 295 374 Core 436 | 8 . . . . . . . . . . . . 1 . . . . 17 55 355 Treads 558 | . 270 77 120 . 91 . . . . . . . . . . . . . . . Legs 5511 | . . . 158 45 335 846 829 640 385 390 142 1035 706 . . . . . . . Wheels 489 | 83 406 . . . . . . . . . . . . . . . . . . . Hover 2830 | . . . . . . . . . . . . . 180 488 308 177 697 740 240 . Flight 1447 | . . . . . . . . . . . . . 955 . . . . 473 . 19 Fastest Speed 23 | 50 100 240 90 90 90 85 82 112 112 112 112 112 24 68 68 68 68 23 50 35 Average Speed 95 | 95 158 240 154 90 153 129 117 112 112 112 112 112 63 68 68 68 68 52 62 49 Slowest Speed 240 | 100 240 240 240 90 240 189 190 112 183 112 112 112 231 68 68 68 68 200 200 50 Overloaded Moves 74 | . . . . . . 7 4 . . . . . 52 . . . . 11 . . Propulsion Burnouts 1 | . . . . . . . . . . . . . . . . . . 1 . . Robots Hopped 13 | . . . . . . . . . . . . . 5 . . . . 8 . . Cave-ins Triggered 1 | . . . . . . . . . . . . . . . . 1 . . . . Exploration Rate (%) 49 | 6 83 15 66 7 36 75 61 21 56 58 75 95 50 63 48 13 63 30 52 56 Regions Visited 20 Branch Regions 13 Pre-discovered Areas 2 | . . . . . . . . . . . 1 . . . 1 . . . . . Known Exits Taken 13 | . . . . . 1 . 1 1 1 1 1 1 1 1 1 . 1 1 1 . Unknown Exits Taken 6 | 1 1 1 1 1 . . . . . . . . . . . 1 . . . . Scrap Searched 18 | . . 1 . . . . . . 1 2 . 4 . 3 1 1 4 . . 1 Spaces Dug 64 | . . . . . . 25 . 1 . . . . 14 . . 13 . 11 . . Terrain Destroyed 580 | 3 14 . . 4 6 239 12 21 1 . . 4 93 . . 17 10 156 . . Melee 11 | . . . . . . . . . . . . . . . . . . 11 . . Projectile 70 | . . . . . 1 . 10 6 1 . . 1 34 . . 17 . . . . AOE 498 | 3 14 . . 4 5 239 2 15 . . . 3 59 . . . 10 144 . . Terrain Rammed 1 | . . . . . . . . . . . . . . . . . . 1 . . Walls Destroyed 1 | . . . . . . . . . . . . . . . . . . 1 . . Machines Disabled . | . . . . . . . . . . . . . . . . . . . . . Actions | -11 -10 -10 -10 -9 -8 -8 -8 -7 -7 -7 -7 -6 -6 -6 -6 -6 -5 -5 -5 -5 --------- Run | Yrd Mat Min Exi Min Mat Gar Mat Fac Low Low Dat Pro Fac Low Low Zio Pro Fac Upp Upp Total 15038 | 119 803 77 283 91 1246 975 1211 943 477 478 160 1428 2547 508 307 247 763 1681 310 384 Wait 2622 | . 68 . . 40 706 8 222 248 76 81 14 351 435 . . 47 . 320 4 2 Move 11229 | 90 675 76 277 44 426 845 828 639 384 389 141 1034 1833 487 307 175 696 1215 294 374 Hop 9 | . . . . . . . . . . . . . 3 . . . . 6 . . Pick Up 249 | 15 19 1 3 1 35 15 24 11 3 . . 6 58 7 . 2 5 41 2 1 Fast Attach . | . . . . . . . . . . . . . . . . . . . . . Attach 117 | 7 1 . . . 14 9 11 7 1 . . 2 23 1 . 2 4 31 3 1 Detach 8 | . . . . . . 2 . . . . . . 4 . . . . 1 1 . Swap 102 | . 4 . 2 . 7 7 14 14 1 . 2 5 26 2 . 2 3 11 2 . Drop 173 | . 8 . 1 1 30 14 17 3 . . . 6 58 7 . . 1 25 2 . Fire 441 | 7 28 . . 5 28 39 95 21 11 8 3 24 107 4 . 18 36 7 . . Melee 36 | . . . . . . 5 . . . . . . . . . . . 23 2 6 Ram 1 | . . . . . . . . . . . . . . . . . . 1 . . Kick . | . . . . . . . . . . . . . . . . . . . . . Crush . | . . . . . . . . . . . . . . . . . . . . . Escape Stasis 21 | . . . . . . 20 . . . . . . . . . 1 . . . . Rewire 17 | . . . . . . 11 . . 1 . . . . . . . 5 . . . Trap 13 | . . . . . . . . . . . . . . . . . 13 . . . Miscellaneous . | . . . . . . . . . . . . . . . . . . . . . Route ------- -11/Scrapyard -10/Materials (discovered 5 exits: [*Mat x3] / [*Min x2]) -10/Mines -10/Exiles -9/Mines -8/Materials (discovered 2 exits: *Fac / Gar) -8/Garrison (discovered 3 exits: *Mat x3) -8/Materials (discovered 2 exits: *Fac x2) -7/Factory (discovered 2 exits: *Fac / *Low) -7/Lower Caves -7/Lower Caves (discovered 2 exits: *Fac / *Dat) -7/Data Miner -6/Proximity Caves -6/Factory (discovered 3 exits: *Fac / *Low x2) -6/Lower Caves -6/Lower Caves -6/Zion -5/Proximity Caves -5/Factory (discovered 4 exits: *Upp x2 / Ext x2) -5/Upper Caves -5/Upper Caves History --------- Turn | Location | Event 14 | -11/Scrapyard | Discovered new exit (range 15) 131 | -11/Scrapyard | Entered Materials 251 | -10/Materials | Discovered new exit (range 6) 301 | -10/Materials | Build established: Mutant 366 | -10/Materials | Discovered new exit (range 16) 486 | -10/Materials | Discovered new exit (range 16) 560 | -10/Materials | Discovered new exit (range 14) 636 | -10/Materials | Discovered new exit (range 12) 1219 | -10/Materials | Repaired Corrupted Lgt. Treads 1373 | -10/Materials | Entered Mines 1402 | -10/Mines | Met a Derelict bent on vengeance 1406 | -10/Mines | Assembled infested the area 1420 | -10/Mines | Received a Mining Laser from a helpful Derelict 1542 | -10/Mines | Deemed a non-threat by the Exiles lab entrance 1542 | -10/Mines | Discovered new exit (range 6) 1557 | -10/Mines | Entered Exiles 1557 | -10/Exiles | Accompanied by 1 ally 1618 | -10/Exiles | Met 8R-AWN 1656 | -10/Exiles | Met EX-HEX 1733 | -10/Exiles | Met EX-BIN 1772 | -10/Exiles | Aligned with FarCom system 1774 | -10/Exiles | Given EX-Vault access code 1829 | -10/Exiles | Opened EX-Vault 1844 | -10/Exiles | Found Potential Leg 1847 | -10/Exiles | Found Potential Leg 1871 | -10/Exiles | Warned to stay clear of 0b10 Research branches 1897 | -10/Exiles | Met EX-DEC 1980 | -10/Exiles | Discovered new exit (range 14) 1993 | -10/Exiles | Left Exiles lab with Potential Leg 1993 | -10/Exiles | Entered Mines 1993 | -9/Mines | Discovered new exit (range 9) 1998 | -9/Mines | Assisted by bots powering up and referring to "LRC-V3" 2090 | -9/Mines | Entered Materials 2090 | -8/Materials | Accompanied by 2 allies 2090 | -8/Materials | Evolved 4 slots: Propulsion x1, Utility x2, Weapon x1 2380 | -8/Materials | Build established: Skirmisher 3006 | -8/Materials | Discovered new exit (range 14) 3538 | -8/Materials | Central database locked down 3618 | -8/Materials | Identified exit to Garrison 3618 | -8/Materials | Entered Garrison 3670 | -8/Garrison | Triggered checkpoint 3774 | -8/Garrison | Triggered checkpoint 3774 | -8/Garrison | Discovered new exit (range 11) 3968 | -8/Garrison | Triggered checkpoint 4146 | -8/Garrison | Triggered checkpoint 4150 | -8/Garrison | Triggered checkpoint 4176 | -8/Garrison | Discovered new exit (range 35) 4176 | -8/Garrison | Discovered new exit (range 47) 4176 | -8/Garrison | Discovered new exit (range 33) 4182 | -8/Garrison | Triggered checkpoint 4236 | -8/Garrison | Installed Relay Interface Framework 4382 | -8/Garrison | Phase Generator disabled 4403 | -8/Garrison | Expanded RIF knowledge: Structural Interface 4579 | -8/Garrison | Garrison Relay disabled 4598 | -8/Garrison | Triggered checkpoint 4613 | -8/Garrison | Garrison Relay disabled 4687 | -8/Garrison | Spotted B-75 Beast 4919 | -8/Garrison | Identified exit to Materials 4920 | -8/Garrison | Entered Materials 5320 | -8/Materials | First assault squad dispatched 6007 | -8/Materials | Discovered new exit (range 9) 6022 | -8/Materials | Identified exit to Factory 6262 | -8/Materials | Repaired Broken Cld. Deuterium Engine 6428 | -8/Materials | Discovered exit to Factory (range 16) 6459 | -8/Materials | Entered Factory 6459 | -7/Factory | Evolved 2 slots: Propulsion x1, Utility x1 6612 | -7/Factory | Build established: Hacker-Skirmisher 6840 | -7/Factory | Hacking Suite fried by hacking feedback 7112 | -7/Factory | Discovered new exit (range 6) 7117 | -7/Factory | Identified exit to Factory 7195 | -7/Factory | Fabricated M-28 Smith (x1) 7220 | -7/Factory | Discovered new exit (range 4) 7223 | -7/Factory | Identified exit to Lower Caves 7228 | -7/Factory | Fabricated Y-54 Guardian (x2) 7269 | -7/Factory | Fabricated H-55 Commando (x2) 7299 | -7/Factory | Fabricated H-55 Commando (x2) 7519 | -7/Factory | Entered Lower Caves 7519 | -7/Lower Caves | Accompanied by 8 allies 7821 | -7/Lower Caves | Build established: Commander-Tank 7926 | -7/Lower Caves | Encountered a Warlord checkpoint 7957 | -7/Lower Caves | Attracted the attention of an 0b10 outpost 8047 | -7/Lower Caves | Discovered new exit (range 6) 8054 | -7/Lower Caves | Identified exit to Lower Caves 8067 | -7/Lower Caves | Entered another Lower Caves area 8067 | -7/Lower Caves | Accompanied by 7 allies 8079 | -7/Lower Caves | Discovered exit to Factory (range 11) 8256 | -7/Lower Caves | Learned location of 1 exit from Factory 8290 | -7/Lower Caves | Learned 4 Factory zone layouts 8435 | -7/Lower Caves | Encountered a Warlord checkpoint 8468 | -7/Lower Caves | Discovered new exit (range 9) 8476 | -7/Lower Caves | Identified exit to Data Miner 8608 | -7/Lower Caves | Entered Data Miner 8608 | -7/Data Miner | Accompanied by 7 allies 8608 | -7/Data Miner | Discovered new exit (range 6) 8630 | -7/Data Miner | Met Data Miner 8653 | -7/Data Miner | Learned location of Section 7 (-2) 8653 | -7/Data Miner | Acquired the access code to Warlord's prototype stash 8671 | -7/Data Miner | Received God Mode back door access code from Data Miner 8765 | -7/Data Miner | Identified exit to Proximity Caves 8788 | -7/Data Miner | Entered Proximity Caves 8788 | -6/Proximity Caves | Accompanied by 7 allies 9027 | -6/Proximity Caves | Received a Behemoth hack from an annoying Tinkerer 9180 | -6/Proximity Caves | Learned Factory terminal intel 9420 | -6/Proximity Caves | Attracted the attention of an 0b10 checkpoint 9555 | -6/Proximity Caves | Spotted B-75 Beast 9562 | -6/Proximity Caves | Destroyed B-75 Beast 10252 | -6/Proximity Caves | Learned Factory trap positions 10328 | -6/Proximity Caves | Discovered exit to Factory (range 14) 10379 | -6/Proximity Caves | Entered Factory 10379 | -6/Factory | Accompanied by 6 allies 10379 | -6/Factory | Evolved 2 slots: Propulsion x1, Utility x1 10380 | -6/Factory | Identified exit to Factory 10382 | -6/Factory | Loaded intel: 85 trap records 10383 | -6/Factory | Loaded intel: 26 terminal locations 10552 | -6/Factory | Discovered new exit (range 13) 10747 | -6/Factory | Lost 4 allies 10902 | -6/Factory | Fabricated H-66 Slayer (x2) 10941 | -6/Factory | Fabricated M-28 Smith (x1) 11015 | -6/Factory | Fabricated H-66 Slayer (x2) 11182 | -6/Factory | Garrison activated, responded to threat 11202 | -6/Factory | Cargo convoy interrupted 11247 | -6/Factory | Lost 5 allies 11526 | -6/Factory | Build established: Hacker-Skirmisher 11885 | -6/Factory | Fabricated H-66 Slayer? 11997 | -6/Factory | Identified exit to Lower Caves 12024 | -6/Factory | Build established: Hacker-Sprinter 12113 | -6/Factory | Fabricated H-66 Slayer (x2) 12453 | -6/Factory | Entered Lower Caves 12466 | -6/Lower Caves | Learned Factory terminal intel 12779 | -6/Lower Caves | Learned Factory stockpile data 12781 | -6/Lower Caves | Build established: Hacker-Tank 12806 | -6/Lower Caves | Discovered new exit (range 6) 12811 | -6/Lower Caves | Identified exit to Lower Caves 12811 | -6/Lower Caves | Entered another Lower Caves area 12815 | -6/Lower Caves | Learned Factory emergency access door positions 12866 | -6/Lower Caves | Learned location of Zion (-6) 13015 | -6/Lower Caves | Discovered new exit (range 6) 13019 | -6/Lower Caves | Identified exit to Zion 13020 | -6/Lower Caves | Entered Zion 13132 | -6/Zion | Crushed by falling debris 13162 | -6/Zion | System corruption cleaned by Quarantine Array 13163 | -6/Zion | Lost 4 parts (2u2w) 13167 | -6/Zion | RIF detected upon attempting to enter Zion 13167 | -6/Zion | Attacked by Zionites 13167 | -6/Zion | Spotted AO-KSB(B) 13167 | -6/Zion | Spotted PR-6A4(B) 13189 | -6/Zion | Discovered new exit (range 11) 13230 | -6/Zion | Entered Proximity Caves 13638 | -5/Proximity Caves | Attracted the attention of an 0b10 outpost 13799 | -5/Proximity Caves | Attracted the attention of an 0b10 checkpoint 13824 | -5/Proximity Caves | Discovered exit to Factory (range 14) 13836 | -5/Proximity Caves | Entered Factory 13836 | -5/Factory | Evolved 2 slots: Power x1, Propulsion x1 13839 | -5/Factory | Loaded intel: 28 terminal locations 13968 | -5/Factory | Identified exit to DSF 14642 | -5/Factory | System corruption reached 10% 14760 | -5/Factory | Lost 16 parts (2p7n4u3w) 14788 | -5/Factory | Core integrity fell below 50% 14828 | -5/Factory | Identified exit to Upper Caves 14828 | -5/Factory | Identified exit to Extension 14918 | -5/Factory | Incoming investigation squad redirected 14986 | -5/Factory | Entered Upper Caves 14993 | -5/Upper Caves | Spotted B-75 Beast 15029 | -5/Upper Caves | Attracted the attention of an 0b10 checkpoint 15085 | -5/Upper Caves | Lost 6 parts (4n1u1w) 15152 | -5/Upper Caves | Core integrity fell below 20% 15172 | -5/Upper Caves | Discovered new exit (range 11) 15177 | -5/Upper Caves | Identified exit to Upper Caves 15189 | -5/Upper Caves | Entered another Upper Caves area 15217 | -5/Upper Caves | Build established: Hacker-Mutant 15224 | -5/Upper Caves | Learned 12 Factory zone layouts 15394 | -5/Upper Caves | Destroyed by P-70 Sage with Tesla Rifle Last Messages --------------- 15235_ System corrupted: IFF burst signal emitted. 15264_ >BC>DVEYHGDX3AGZL|P2PIWBF9J/7J 15282_ I&OG TX,ERQXH/CB86LET%TC& II, HAATJ| 15297_ 9G/CWQ=YPC #/1RHXSXYCR 15333_ System corrupted: Matter fused (-7). 15351_ System corrupted: Component data lost. 15354_ Acquired derelict log, extracted data. Data stored: Armory entrances (x1). 15368_ System corrupted: IFF burst signal emitted. 15381_ Acquired VTOL Module. 15383_ Searching scrap... 15383_ Found Mak. Terrain Scan Processor. 15383_ Found Com. Wheel. 15383_ Found 13 Matter. 15384_ Acquired 13 matter. 15385_ Sneak attack on V7-FON(b). 15385_ V7-FON(b) destroyed. 15390_ System corrupted: Component data lost. Map ----- +----------------------------------------------------+ | ??????????????????????????????????????? | | ??????????????????????????????????????? | | ??????????????????????????????????????? | | ??????????????????????????????????????? | | ??????????????????????????????????????? | | ??????????????????????????????????????? | | ??????????????????????????????????????? | | ??????????????????????????????????????? | | ??????????????????????????????????????? | | ??????????????????????????????????????? | | ??????????????????????????????????????? | | ??????????????????????????????????????? | | ??????????????????????????????????????# | | ?????????????????????????????????# ?? | | ????????????????????????????????? ?? | | ????????????????????????????????? #? | | ????????????????????????????????? #? | | ?????????????????????????????????? #? | | ?????????????????????????????????? ## | | ?????????????????????????????????? ## | | ??????????????????????????????????# ## | | ????????????????####??????????????# ## | | ???????????????## ##?????????????# ## | | ?????????????### #?????????????# ## | | ????????###### #????#######??# ## | | ???????## @ #???### ## #### | | ???????# != l ##??# ## | | ???????# % l ##p ##??# | | ???????## #### | | ????????## !## ## | | ?????????####### ### | | ???????????????# ####### #?? | | ???????????????## ##?????# #?? | | ????????????????## ####??????# #?? | | ?????????????????### ##????????? #?? | | ???????????????????####????????? #?? | | ???????????????????????????????? ?? | | ??????????????????????????????? ?? | | ??????????????????????????????# ? | | ??????????????????????????????# ? | | ??????????????????????????????# ? | | ??????????????????????????????## ### | | ???????????????????????????????# ???# | | ????????????????????????????????? ???? | | ?????????????????????????????????##???? | | ??????????????????????????????????????? | | ??????????????????????????????????????? | | ??????????????????????????????????????? | | ??????????????????????????????????????? | | ??????????????????????????????????????? | +----------------------------------------------------+ Best States ------------- Heat Dissipation 99 Coolant Potential 65 Energy Generation 31 Energy Capacity 640 Matter Stores 300 Matter Capacity 300 Sight Range 18 Terrain Scan Range 16 Terrain Scan Density 110 Cloak Strength 3 Additional Mass Support 9 Armor Coverage 150 Resistance: KI 20 Resistance: TH 20 Resistance: EX 20 Resistance: EM 20 Resistance: I 20 Resistance: S 20 Resistance: P 20 Propulsion Shielding 33 Evasion (%) 65 Recoil Reduction 3 Energy Filtering 30 Offensive Hacking 44 Defensive Hacking 24 Relay Coupler Types 1 Relay Coupler Value 27 Authchip Count 7 Item Schematics ----------------- Imp. Light Armor Plating | -8/Materials | Scanalyzed Hcp. Storage Unit | -8/Materials | Scanalyzed Adv. Cooling System | -8/Materials | Scanalyzed Assault Rifle | -8/Materials | Extracted Recoil Stabilizer | -8/Materials | Extracted Hacking Suite | -8/Materials | Hacked Combat Drone Bay | -7/Data Miner | Free Lgt. Regenerative Plating | -7/Data Miner | Free Cld. Cesium-ion Thruster | -7/Data Miner | Free Gravity Neutralizer | -7/Data Miner | Free Imp. Heavy Laser | -7/Data Miner | Free Arm. Medium Treads | -7/Data Miner | Free Imp. Corruption Screen | -7/Data Miner | Free Tesla Rifle | -7/Data Miner | Free Triangulator | -7/Data Miner | Free Disruptor Cannon | -7/Data Miner | Free Adv. Coolant Injector | -7/Data Miner | Free Nuclear Pulse Thruster | -6/Factory | Hacked Hrd. Light Armor Plating | -5/Factory | Extracted Imp. Shock Absorption System | -5/Factory | Extracted Adv. ECM Suite | -5/Factory | Extracted Nuclear Pulse Array | -5/Factory | Hacked Variable Charge Gun | -5/Factory | Hacked Robot Schematics ------------------ M-28 Smith | -8/Materials | Hacked H-55 Commando | -8/Materials | Hacked Y-54 Guardian | -7/Factory | Hacked G-50 Soldier | -7/Data Miner | Free E-15 Imp | -7/Data Miner | Free M-22 Extractor | -7/Data Miner | Free W-25 Informer | -7/Data Miner | Free H-66 Slayer | -7/Data Miner | Free T-07 Excavator | -6/Factory | Hacked P-60 Hacker | -6/Factory | Hacked Fabricated ------------ M-28 Smith | x1 | -7/Factory | Authchip Y-54 Guardian | x2 | -7/Factory | Authchip H-55 Commando | x2 | -7/Factory | Authchip H-55 Commando | x2 | -7/Factory | Authchip H-66 Slayer | x2 | -6/Factory | Authchip M-28 Smith | x1 | -6/Factory | Authchip H-66 Slayer | x2 | -6/Factory | Authchip H-66 Slayer | x2 | -6/Factory H-66 Slayer | x2 | -6/Factory Alien Tech Used ----------------- None Achievements -------------- None Challenges ------------ None Game ------ Seed FlightMappingNanosword Manual? 0 Play Time 03:00:55 Cumulative 491.2 hours Start 2024.07.16 @ 22:23:21 End 2024.07.17 @ 01:30:14 Sessions 1 Manual Loads 0 Difficulty Adventurer Special Mode None Game No. 86 Rogue 0 Adventurer 86 Explorer 0 Win Type - Total 6 Types 3/0/1/2/0/0/0/0/0 Lore% 59 Gallery% 81 Achievement% 69 Wizard Run 0 Options --------- Layout 2 ASCII 0 Keyboard 0 Movement Mouse Keybinds 0 Fullscreen 1 Font 24/Smallcaps Map View 50x49 Zoom Use 3% Tactical HUD 1 Map Filters NONE Filters NONE Steam 1 RUN: 557db266-6b2f-4d06-9e1f-a5ec0188b9fb